fUST/lending_fUST_20260113
["ID","MTS","AMOUNT","RATE_DAILY","PERIOD"]
[401498104,1768272640732,-500.0,0.00013699,2]
[401498106,1768272640741,-160.71798276,0.00013699,2]
[401498108,1768272640750,-500.0,0.00013699,2]
[401498110,1768272640760,-500.0,0.00013699,2]
[401498112,1768272640770,-500.0,0.00013699,2]
[401498114,1768272640779,-227.1525335,0.00013699,2]
[401498116,1768272640789,-502.80003889,0.00013699,2]
[401498118,1768272640800,-461.30308829,0.00013699,2]
[401498130,1768272640902,-500.0,0.00013699,2]
[401498133,1768272640912,-500.33229586,0.00013699,2]
[401498134,1768272640922,-500.0,0.00013699,2]
[401498136,1768272640933,-500.0,0.00013699,2]
[401498138,1768272640943,-500.26011474,0.00013699,2]
[401498140,1768272640953,-500.0,0.00013699,2]
[401498142,1768272640963,-500.0,0.00013699,2]
[401498144,1768272640973,-500.0,0.00013699,2]
[401498147,1768272640982,-500.0,0.00013699,2]
[401498149,1768272640991,-500.0,0.00013699,2]
[401498150,1768272641000,-500.0,0.00013699,2]
[401498152,1768272641010,-500.0,0.00013699,2]
[401498154,1768272641019,-500.0,0.00013699,2]
[401498157,1768272641029,-500.0,0.00013699,2]
[401498161,1768272641039,-434.45562234,0.00013699,2]
[401498164,1768272641049,-500.0,0.00013699,2]
[401498165,1768272641059,-298.89998035,0.00013699,2]
[401498167,1768272641069,-500.0,0.00013699,2]
[401498169,1768272641080,-500.0,0.00013699,2]
[401498171,1768272641090,-500.0,0.00013699,2]
[401498173,1768272641100,-500.0,0.00013699,2]
[401498175,1768272641110,-500.32741259,0.00013699,2]
[401498176,1768272641120,-500.27924126,0.00013699,2]
[401498177,1768272641130,-500.0,0.00013699,2]
[401498178,1768272641139,-610.91637181,0.00013699,2]
[401498179,1768272641148,-411.20049965,0.00013699,2]
[401498180,1768272641157,-500.0,0.00013699,2]
[401498181,1768272641166,-500.0,0.00013699,2]
[401498182,1768272641175,-500.0,0.00013699,2]
[401498183,1768272641184,-500.0,0.00013699,2]
[401498184,1768272641194,-500.0,0.00013699,2]
[401498185,1768272641204,-500.0,0.00013699,2]
[401498186,1768272641213,-500.0,0.00013699,2]
[401498187,1768272641227,-500.0,0.00013699,2]
[401498188,1768272641236,-367.67596865,0.00013699,2]
[401498189,1768272641245,-313.26668117,0.00013699,2]
[401498190,1768272641254,-500.53205466,0.00013699,2]
[401498191,1768272641265,-500.0,0.00013699,2]
[401498192,1768272641274,-500.0,0.00013699,2]
[401498193,1768272641284,-296.2401009,0.00013699,2]
[401498194,1768272641295,-500.0,0.00013699,2]
[401498195,1768272641305,-500.0,0.00013699,2]
[401498196,1768272641314,-500.0,0.00013699,2]
[401498197,1768272641323,-500.0,0.00013699,2]
[401498198,1768272641333,-500.0,0.00013699,2]
[401498199,1768272641343,-501.77596466,0.00013699,2]
[401498200,1768272641352,-500.0,0.00013699,2]
[401498201,1768272641362,-500.0,0.00013699,2]
[401498202,1768272641371,-500.0,0.00013699,2]
[401498203,1768272641380,-500.0,0.00013699,2]
[401498204,1768272641390,-500.0,0.00013699,2]
[401498206,1768272641400,-500.0,0.00013699,2]
[401498208,1768272641409,-500.0,0.00013699,2]
[401498210,1768272641419,-500.0,0.00013699,2]
[401498212,1768272641428,-500.0,0.00013699,2]
[401498214,1768272641439,-500.0,0.00013699,2]
[401498216,1768272641448,-500.0,0.00013699,2]
[401498218,1768272641457,-442.19105582,0.00013699,2]
[401498220,1768272641467,-500.0,0.00013699,2]
[401498222,1768272641476,-500.0,0.00013699,2]
[401498224,1768272641486,-159.67447117,0.00013699,2]
[401498226,1768272641495,-500.0,0.00013699,2]
[401498228,1768272641505,-201.72675896,0.00013699,2]
[401498230,1768272641514,-1114.62780634,0.00013821,2]
[401498232,1768272641523,-1000.0,0.00013821,2]
[401498234,1768272641533,-1000.0,0.00013821,2]
[401498236,1768272641542,-958.892719,0.00013821,2]
[401498239,1768272641551,-290.80732737,0.00013821,2]
[401498241,1768272641560,-1000.0,0.00013821,2]
[401498243,1768272641569,-1000.0,0.00013821,2]
[401498245,1768272641579,-1000.0,0.00013821,2]
[401498247,1768272641588,-1000.0,0.00013821,2]
[401498249,1768272641597,-1000.0,0.00013821,2]
[401498251,1768272641606,-1000.0,0.00013821,2]
[401498253,1768272641616,-1000.0,0.00013821,2]
[401498255,1768272641625,-1000.0,0.00013821,2]
[401498257,1768272641634,-1000.0,0.00013821,2]
[401498259,1768272641644,-1000.65920252,0.00013821,2]
[401498261,1768272641652,-1000.0,0.00013821,2]
[401498263,1768272641661,-1000.0,0.00013821,2]
[401498265,1768272641670,-1000.0,0.00013821,2]
[401498267,1768272641679,-1000.0,0.00013821,2]
[401498269,1768272641688,-1000.0,0.00013821,2]
[401498271,1768272641698,-1000.0,0.00013821,2]
[401498273,1768272641707,-1000.0,0.00013821,2]
[401498275,1768272641716,-1000.0,0.00013821,2]
[401498277,1768272641725,-1000.0,0.00013821,2]
[401498279,1768272641735,-1000.0,0.00013821,2]
[401498280,1768272641744,-1000.0,0.00013821,2]
[401498282,1768272641753,-1000.0,0.00013821,2]
[401498285,1768272641762,-1000.0,0.00013821,2]
[401498287,1768272641772,-1000.0,0.00013821,2]
[401498289,1768272641784,-1000.0,0.00013821,2]
[401498290,1768272641793,-1001.09633075,0.00013821,2]
[401498292,1768272641802,-681.0016986,0.00013821,2]
[401498294,1768272641811,-1000.0,0.00013821,2]
[401498296,1768272641820,-332.84054577,0.00013821,2]
[401498298,1768272641830,-799.1982595,0.00013821,2]
[401498300,1768272641839,-303.88205907,0.00013821,2]
[401498302,1768272641849,-1000.0,0.00013821,2]
[401498304,1768272641858,-1000.0,0.00013821,2]
[401498306,1768272641869,-1000.0,0.00013821,2]
[401498308,1768272641878,-1000.0,0.00013821,2]
[401498310,1768272641888,-294.27582937,0.00013973,2]
[401498312,1768272641898,-587.0,0.00014151,2]
[401498314,1768272641908,-600.0,0.00014221,2]
[401498316,1768272641917,-1000.90817033,0.00014247,2]
[401498318,1768272641926,-1000.92415613,0.00014247,2]
[401498320,1768272641936,-1018.46469469,0.00014247,2]
[401498322,1768272641946,-1002.91382206,0.00014247,2]
[401498324,1768272641955,-501.93084726,0.00014247,2]
[401498326,1768272641964,-1000.0,0.00014247,2]
[401498328,1768272641973,-1000.0,0.00014247,2]
[401498330,1768272641982,-1000.0,0.00014247,2]
[401498332,1768272641991,-1000.46611267,0.00014247,2]
[401498334,1768272642000,-1000.0,0.00014247,2]
[401498336,1768272642010,-1000.0,0.00014247,2]
[401498338,1768272642020,-1000.0,0.00014247,2]
[401498340,1768272642029,-1000.0,0.00014247,2]
[401498342,1768272642038,-250.18055217,0.00014247,2]
[401498344,1768272642047,-1001.25659261,0.00014247,2]
[401498346,1768272642056,-1000.0,0.00014247,2]
[401498348,1768272642065,-276.84131836,0.00014247,2]
[401498350,1768272642074,-1000.0,0.00014247,2]
[401498352,1768272642083,-1000.92768077,0.00014247,2]
[401498354,1768272642091,-1000.0,0.00014247,2]
[401498355,1768272642100,-1000.0,0.00014247,2]
[401498357,1768272642110,-500.83741654,0.00014247,2]
[401498359,1768272642119,-1000.0,0.00014247,2]
[401498361,1768272642128,-876.1803398,0.00014247,2]
[401498363,1768272642137,-1000.49621073,0.00014247,2]
[401498365,1768272642147,-1003.11856965,0.00014247,2]
[401498367,1768272642156,-1000.0,0.00014247,2]
[401498369,1768272642165,-1000.0,0.00014247,2]
[401498371,1768272642174,-1000.0,0.00014247,2]
[401498373,1768272642184,-1000.0,0.00014247,2]
[401498375,1768272642193,-1000.0,0.00014247,2]
[401498377,1768272642203,-1081.71283585,0.00014247,2]
[401498379,1768272642213,-1000.0,0.00014247,2]
[401498381,1768272642227,-1000.0,0.00014247,2]
[401498383,1768272642236,-1000.0,0.00014247,2]
[401498385,1768272642245,-1000.0,0.00014247,2]
[401498387,1768272642255,-1000.0,0.00014247,2]
[401498389,1768272642265,-1000.0,0.00014247,2]
[401498391,1768272642274,-1000.0,0.00014247,2]
[401498393,1768272642284,-1000.0,0.00014247,2]
[401498395,1768272642293,-1000.0,0.00014247,2]
[401498397,1768272642302,-1000.0,0.00014247,2]
[401498399,1768272642311,-1000.0,0.00014247,2]
[401498401,1768272642320,-1000.0,0.00014247,2]
[401498403,1768272642330,-1000.0,0.00014247,2]
[401498405,1768272642339,-1000.0,0.00014247,2]
[401498407,1768272642348,-1000.0,0.00014247,2]
[401498409,1768272642357,-1000.27165154,0.00014247,2]
[401498411,1768272642366,-853.4021361,0.00014247,2]
[401498413,1768272642376,-1000.0,0.00014247,2]
[401498415,1768272642384,-1000.0,0.00014247,2]
[401498417,1768272642394,-1014.96531126,0.00014247,2]
[401498419,1768272642403,-1000.0,0.00014247,2]
[401498421,1768272642412,-1000.0,0.00014247,2]
[401498422,1768272642421,-1000.0,0.00014247,2]
[401498424,1768272642431,-1000.0,0.00014247,2]
[401498426,1768272642440,-1138.93332582,0.00014247,2]
[401498428,1768272642449,-647.12625165,0.00014247,2]
[401498430,1768272642459,-1006.57632602,0.00014247,2]
[401498432,1768272642467,-1000.0,0.00014247,2]
[401498434,1768272642476,-346.38117913,0.00014247,2]
[401498436,1768272642485,-1500.0,0.00014368,2]
[401498438,1768272642494,-1500.0,0.00014368,2]
[401498440,1768272642503,-424.06874761,0.00014368,2]
[401498442,1768272642512,-1500.0,0.00014368,2]
[401498444,1768272642522,-1177.20505665,0.00014368,2]
[401498446,1768272642531,-402.67173602,0.00014368,2]
[401498448,1768272642540,-1486.32296382,0.00014368,2]
[401498450,1768272642549,-501.24947026,0.00014368,2]
[401498452,1768272642558,-764.84363887,0.00014368,2]
[401498454,1768272642567,-1500.0,0.00014368,2]
[401498456,1768272642576,-1001.10373896,0.00014368,2]
[401498458,1768272642585,-501.53674303,0.00014368,2]
[401498460,1768272642594,-1500.0,0.00014368,2]
[401498462,1768272642603,-1500.0,0.00014368,2]
[401498464,1768272642612,-1500.0,0.00014368,2]
[401498466,1768272642622,-504.59320272,0.00014368,2]
[401498468,1768272642631,-1500.0,0.00014368,2]
[401498470,1768272642643,-1500.0,0.00014368,2]
[401498472,1768272642653,-1121.35319303,0.00014368,2]
[401498474,1768272642662,-1500.0,0.00014368,2]
[401498476,1768272642671,-1501.96202407,0.00014368,2]
[401498478,1768272642680,-1500.0,0.00014368,2]
[401498480,1768272642689,-1500.0,0.00014368,2]
[401498482,1768272642698,-1604.29070362,0.00014368,2]
[401498484,1768272642707,-1500.0,0.00014368,2]
[401498486,1768272642716,-1500.0,0.00014368,2]
[401498488,1768272642725,-1500.0,0.00014368,2]
[401498490,1768272642734,-1500.0,0.00014368,2]
[401498492,1768272642744,-1503.82096897,0.00014368,2]
[401498494,1768272642752,-1001.124693,0.00014368,2]
[401498496,1768272642762,-1500.0,0.00014368,2]
[401498498,1768272642771,-5000.0,0.0001451,2]
[401498500,1768272642779,-500.0,0.00014563,2]
[401498502,1768272642788,-500.0,0.00014563,2]
[401498504,1768272642797,-500.0,0.00014563,2]
[401498506,1768272642806,-500.0,0.00014563,2]
[401498508,1768272642815,-500.0,0.00014563,2]
[401498510,1768272642824,-500.0,0.00014563,2]
[401498512,1768272642833,-500.0,0.00014563,2]
[401498514,1768272642842,-500.0,0.00014563,2]
[401498516,1768272642851,-500.0,0.00014563,2]
[401498518,1768272642860,-500.0,0.00014563,2]
[401498520,1768272642870,-500.0,0.00014563,2]
[401498522,1768272642879,-500.0,0.00014563,2]
[401498524,1768272642888,-373.37500189,0.00014563,2]
[401498526,1768272642896,-100000.0,0.0001459,2]
[401498528,1768272642906,-864.0,0.0001461,2]
[401498530,1768272642915,-10000.0,0.00014695,2]
[401498532,1768272642924,-900.0,0.00014768,2]
[401498534,1768272642933,-1001.171917,0.00014795,2]
[401498536,1768272642943,-159.06616875,0.00014795,2]
[401498538,1768272642951,-575.12204215,0.00014795,2]
[401498540,1768272642960,-501.12760759,0.00014795,2]
[401498542,1768272642969,-1500.0,0.00014795,2]
[401498544,1768272642978,-1501.00555591,0.00014795,2]
[401498546,1768272642987,-1501.38493876,0.00014795,2]
[401498548,1768272642996,-1000.76370703,0.00014795,2]
[401498550,1768272643006,-1000.0,0.00014795,2]
[401498552,1768272643015,-181.44158321,0.00014795,2]
[401498554,1768272643024,-530.28509529,0.00014795,2]
[401498556,1768272643034,-1122.15758895,0.00014795,2]
[401498558,1768272643043,-1500.0,0.00014795,2]
[401498560,1768272643053,-675.8504307,0.00014795,2]
[401498562,1768272643062,-500.72224466,0.00014795,2]
[401498564,1768272643072,-1500.0,0.00014795,2]
[401498566,1768272643081,-500.76361488,0.00014795,2]
[401498568,1768272643090,-1500.0,0.00014795,2]
[401498570,1768272643100,-1500.0,0.00014795,2]
[401498572,1768272643109,-1500.89243734,0.00014795,2]
[401498574,1768272643118,-1501.63615745,0.00014795,2]
[401498576,1768272643128,-1500.0,0.00014795,2]
[401498577,1768272643227,-1510.88603555,0.00014795,2]
[401498578,1768272643236,-1500.0,0.00014795,2]
[401498579,1768272643246,-1501.07329745,0.00014795,2]
[401498580,1768272643256,-1501.40641457,0.00014795,2]
[401498581,1768272643266,-1500.0,0.00014795,2]
[401498582,1768272643275,-500.93199732,0.00014795,2]
[401498583,1768272643284,-1501.33228537,0.00014795,2]
[401498584,1768272643295,-1507.04649373,0.00014795,2]
[401498585,1768272643303,-711.54421666,0.00014795,2]
[401498586,1768272643312,-1500.98173226,0.00014795,2]
[401498587,1768272643322,-1002.6632099,0.00014795,2]
[401498588,1768272643332,-1500.0,0.00014795,2]
[401498589,1768272643341,-1500.0,0.00014795,2]
[401498590,1768272643350,-1501.37309074,0.00014795,2]
[401498591,1768272643360,-1501.05825586,0.00014795,2]
[401498592,1768272643369,-1500.0,0.00014795,2]
[401498593,1768272643379,-965.26033505,0.00014795,2]
[401498594,1768272643388,-397.98045765,0.00014801,2]
[401498595,1768272643398,-155.72124395,0.00014916,2]
[401498596,1768272643407,-501.3821036,0.00014916,2]
[401498597,1768272643417,-500.0,0.00014916,2]
[401498598,1768272643426,-2000.0,0.00014916,2]
[401498599,1768272643435,-2000.0,0.00014916,2]
[401498600,1768272643444,-2000.0,0.00014916,2]
[401498601,1768272643453,-501.00821416,0.00014916,2]
[401498602,1768272643463,-2000.0,0.00014916,2]
[401498603,1768272643472,-2000.0,0.00014916,2]
[401498604,1768272643481,-2000.0,0.00014916,2]
[401498605,1768272643491,-2000.0,0.00014916,2]
[401498606,1768272643501,-1468.56684157,0.00014916,2]
[401498607,1768272643511,-2000.0,0.00014916,2]
[401498608,1768272643521,-2000.0,0.00014916,2]
[401498609,1768272643530,-2000.0,0.00014916,2]
[401498610,1768272643539,-2000.0,0.00014916,2]
[401498611,1768272643548,-1115.07532372,0.00014916,2]
[401498612,1768272643558,-163.0,0.00015,2]
[401498613,1768272643569,-303.3619795,0.00015316,2]
[401498614,1768272643578,-502.76680069,0.00015342,2]
[401498615,1768272643587,-1001.48921188,0.00015342,2]
[401498616,1768272643596,-1527.24664975,0.00015342,2]
[401498617,1768272643605,-1032.33423747,0.00015342,2]
[401498618,1768272643615,-1502.09397869,0.00015342,2]
[401498619,1768272643624,-2000.0,0.00015342,2]
[401498620,1768272643634,-2000.0,0.00015342,2]
[401498621,1768272643644,-508.65480008,0.00015342,2]
[401498622,1768272643653,-1503.11478262,0.00015342,2]
[401498623,1768272643664,-738.12965547,0.00015342,2]
[401498624,1768272643673,-506.46904603,0.00015342,2]
[401498625,1768272643683,-1003.70557583,0.00015464,2]
[401498626,1768272643692,-2500.0,0.00015464,2]
[401498627,1768272643701,-1005.08827412,0.00015464,2]
[401498628,1768272643712,-376.21269073,0.00015464,2]
[401498629,1768272643722,-2025.97466783,0.00015464,2]
[401498630,1768272643731,-2500.0,0.00015464,2]
[401498631,1768272643741,-1003.32351431,0.00015464,2]
[401498632,1768272643750,-1003.04077884,0.00015464,2]
[401498633,1768272643760,-2500.0,0.00015464,2]
[401498634,1768272643770,-2500.0,0.00015464,2]
[401498635,1768272643779,-2500.0,0.00015464,2]
[401498636,1768272643789,-823.0,0.00015539,2]
[401498637,1768272643798,-283.46291317,0.00015785,2]
[401498638,1768272643807,-1133.85165267,0.00015785,2]
[401498639,1768272643816,-2551.16621851,0.00015785,2]
[401498640,1768272643825,-4535.40661068,0.00015785,2]
[401498642,1768272643834,-7079.48625636,0.00015785,2]
[401498643,1768272643843,-243.36495133,0.00015785,2]
[401498644,1768272643852,-973.45980532,0.00015785,2]
[401498645,1768272643862,-2190.28456198,0.00015785,2]
[401498646,1768272643871,-3893.8392213,0.00015785,2]
[401498647,1768272643880,-6084.12378327,0.00015785,2]
[401498648,1768272643890,-1002.43140219,0.0001589,2]
[401498649,1768272643900,-2500.0,0.0001589,2]
[401498650,1768272643909,-506.2119685,0.00016012,2]
[401498652,1768272643919,-2004.76280293,0.00016012,2]
[401498653,1768272643928,-3000.0,0.00016012,2]
[401498654,1768272643938,-3000.0,0.00016012,2]
[401498655,1768272643947,-3000.0,0.00016012,2]
[401498656,1768272643956,-1000.0,0.00016071,2]
[401498657,1768272643965,-3638.3636161,0.00016252,2]
[401498658,1768272643975,-2289.152895,0.00016252,2]
[401498659,1768272643984,-1041.66666667,0.00016314,2]
[401498660,1768272643994,-229.07764705,0.00016351,7]
[401498661,1768272644004,-500.0,0.00016438,2]
[401498662,1768272644014,-442.87297618,0.00016438,2]
[401498663,1768272644024,-500.0,0.00016438,2]
[401498664,1768272644033,-200.0,0.00016438,2]
[401498665,1768272644042,-3000.0,0.00016438,2]
[401498666,1768272644051,-1041.72224603,0.0001656,2]
[401498667,1768272644060,-2511.02649148,0.0001656,2]
[401498668,1768272644070,-509.17780676,0.0001656,2]
[401498669,1768272644079,-8752.37710967,0.00016616,2]
[401498670,1768272644088,-450.65434175,0.00016801,2]
[401498671,1768272644099,-1025.21475413,0.00016986,2]
[401498672,1768272644109,-1152.0,0.00017063,2]
[401498673,1768272644119,-5042.42626027,0.00017412,2]
[401498674,1768272644130,-180.64778451,0.00017443,2]
[401498675,1768272644140,-4757.55763433,0.00017532,2]
[401498676,1768272644150,-496.47127164,0.00017532,2]
[401498677,1768272644159,-181.08010149,0.00017532,2]
[401498678,1768272644171,-187.78006525,0.00017532,2]
[401498679,1768272644181,-2398.4119403,0.00017532,2]
[401498680,1768272644190,-194.72792766,0.00017532,2]
[401498681,1768272644202,-201.93286099,0.00017532,2]
[401498682,1768272644212,-209.40437684,0.00017532,2]
[401498683,1768272644224,-217.15233878,0.00017532,2]
[401498684,1768272644235,-225.18697532,0.00017532,2]
[401498685,1768272644244,-233.51889341,0.00017532,2]
[401498686,1768272644254,-242.15909246,0.00017532,2]
[401498687,1768272644265,-251.11897888,0.00017532,2]
[401498688,1768272644275,-260.4103811,0.00017532,2]
[401498689,1768272644284,-270.0455652,0.00017532,2]
[401498690,1768272644296,-280.03725112,0.00017532,2]
[401498691,1768272644306,-290.39862941,0.00017532,2]
[401498692,1768272644316,-301.1433787,0.00017532,2]
[401498693,1768272644327,-400.0,0.00017534,2]
[401498694,1768272644336,-1000.0,0.00017679,2]
[401498695,1768272644345,-244.0,0.00017679,2]
[401498696,1768272644355,-160.0,0.000179,2]
[401498697,1768272644364,-151.0,0.00017955,2]
[401498698,1768272644374,-514.84070869,0.0001808,2]
[401498699,1768272644384,-2487.15318209,0.0001808,2]
[401498700,1768272644393,-81361.0723308,0.00018323,2]
[401498701,1768272644403,-151.0,0.00018461,2]
[401498702,1768272644412,-533.88981491,0.00018628,2]
[401498703,1768272644421,-2579.17784983,0.00018628,2]
[401498704,1768272644431,-600.0,0.0001863,2]
[401498705,1768272644440,-728.0,0.0001867,2]
[401498706,1768272644451,-728.0,0.0001867,2]
[401498707,1768272644463,-1613.0,0.00018736,2]
[401498708,1768272644474,-503.32822585,0.00018801,2]
[401498710,1768272644483,-162.0,0.00018838,2]
[401498712,1768272644493,-2812.60494797,0.00018882,2]
[401498713,1768272644503,-303.10001603,0.000189,2]
[401498714,1768272644512,-151.0,0.00018966,2]
[401498715,1768272644521,-160.0,0.0001899,2]
[401498716,1768272644531,-160.10713224,0.00019,3]
[401498717,1768272644540,-303.10001603,0.00019089,2]
[401498718,1768272644550,-164.654,0.00019089,2]
[401498719,1768272644559,-728.0,0.0001912,2]
[401498720,1768272644568,-728.0,0.0001912,2]
[401498721,1768272644577,-728.0,0.00019158,2]
[401498723,1768272644586,-553.64373807,0.00019176,2]
[401498726,1768272644595,-2674.60743027,0.00019176,2]
[401498727,1768272644604,-439254.65313167,0.00019176,2]
[401498728,1768272644613,-151.0,0.00019176,2]
[401498729,1768272644622,-151.0,0.00019176,2]
[401498730,1768272644631,-151.0,0.00019176,2]
[401498732,1768272644640,-172.648383,0.00019176,2]
[401498733,1768272644649,-172.648383,0.00019176,2]
[401498734,1768272644658,-172.648383,0.00019176,2]
[401498735,1768272644667,-172.648383,0.00019176,2]
[401498736,1768272644677,-151.0,0.00019176,2]
[401498737,1768272644686,-155.025966,0.00019176,2]
[401498738,1768272644697,-360.2,0.00019178,2]
[401498739,1768272644707,-156.68,0.000192,2]
[401498740,1768272644716,-4111.24,0.000192,2]
[401498741,1768272644726,-160.67,0.000192,2]
[401498742,1768272644736,-303.10001603,0.00019278,2]
[401498743,1768272644746,-728.0,0.00019354,2]
[401498744,1768272644755,-728.0,0.00019422,2]
[401498745,1768272644765,-1000.0,0.00019446,2]
[401498746,1768272644774,-492.0,0.00019446,2]
[401498747,1768272644783,-17769.71230467,0.00019465,2]
[401498748,1768272645004,-999.3076169,0.00019465,2]
[401498749,1768272645435,-40.05983979,0.00019465,2]
[401498750,1768272646205,-931.63,0.00019465,2]
[401498752,1768272646259,-908.51,0.00019465,2]
[401498756,1768272646732,-11412.33467896,0.00019465,2]
[401498759,1768272793213,500.0,0.00030136,120]
[401498760,1768272793473,500.0,0.00030136,120]
[401498761,1768272793750,500.0,0.00030136,120]
[401498762,1768272794064,500.0,0.00030136,120]
[401498763,1768272794339,500.0,0.00030136,120]
[401498764,1768272794603,500.0,0.00030136,120]
[401498765,1768272795042,500.0,0.00030136,120]
[401498766,1768272795318,500.0,0.00030136,120]
[401498767,1768272795634,500.0,0.00030136,120]
[401498768,1768272795911,500.0,0.00030136,120]
[401498769,1768272796204,500.0,0.00030136,120]
[401498770,1768272796813,500.0,0.00030136,120]
[401498771,1768272797104,500.0,0.00030136,120]
[401498772,1768272797395,500.0,0.00030136,120]
[401498773,1768272798050,614.00000003,0.00030136,120]
[401498774,1768272837579,500.0,0.00030136,120]
[401498775,1768272837829,500.0,0.00030136,120]
[401498776,1768272838114,500.0,0.00030136,120]
[401498777,1768272838413,483.27805779,0.00030136,120]
[401498781,1768273174630,500.0,0.00030136,120]
[401498782,1768273174909,500.0,0.00030136,120]
[401498783,1768273621603,177.53997919,0.0003,120]
[401498809,1768273831703,-888.2784673,0.00010617,2]
[401498811,1768273831713,-569.0,0.00010617,2]
[401498812,1768273831722,-172.558,0.00011404,2]
[401498813,1768273831732,-108761.95618836,0.000115,2]
[401498814,1768273831743,-988.94503828,0.000115,2]
[401498815,1768273831758,-8724.02361949,0.000115,2]
[401498825,1768273837816,-881525.07515387,0.000115,2]
[401498826,1768273837826,-322.65211462,0.00011501,2]
[401498827,1768273837836,-300.0,0.00011598,2]
[401498828,1768273837845,-1200.0,0.00011598,2]
[401498829,1768273837856,-300.0,0.00011599,2]
[401498830,1768273837866,-300.0,0.00011599,2]
[401498831,1768273837877,-151.0,0.000116,2]
[401498832,1768273837887,-151.0,0.000116,2]
[401498833,1768273837897,-151.0,0.000116,2]
[401498834,1768273837907,-151.0,0.000116,2]
[401498835,1768273837917,-151.0,0.000116,2]
[401498837,1768273837926,-151.0,0.000116,2]
[401498838,1768273837937,-151.0,0.000116,2]
[401498839,1768273837946,-151.0,0.000116,2]
[401498840,1768273837956,-151.0,0.000116,2]
[401498841,1768273837966,-151.0,0.000116,2]
[401498842,1768273837976,-151.0,0.000116,2]
[401498843,1768273837986,-151.0,0.000116,2]
[401498844,1768273837997,-151.0,0.000116,2]
[401498845,1768273838007,-151.0,0.000116,2]
[401498846,1768273838016,-151.0,0.000116,2]
[401498847,1768273838026,-151.0,0.000116,2]
[401498848,1768273838036,-151.0,0.000116,2]
[401498849,1768273838046,-50000.0,0.000116,2]
[401498850,1768273838058,-500.0,0.00011632,2]
[401498851,1768273838068,-500.0,0.00011632,2]
[401498852,1768273838078,-500.0,0.00011632,2]
[401498853,1768273838088,-500.0,0.00011632,2]
[401498854,1768273838098,-405.81670383,0.00011632,2]
[401498855,1768273838108,-500.0,0.00011632,2]
[401498856,1768273838118,-500.0,0.00011632,2]
[401498857,1768273838128,-500.0,0.00011632,2]
[401498858,1768273838137,-500.0,0.00011632,2]
[401498859,1768273838147,-500.0,0.00011632,2]
[401498860,1768273838156,-500.0,0.00011632,2]
[401498861,1768273838166,-500.0,0.00011632,2]
[401498862,1768273838176,-241.42199112,0.00011632,2]
[401498863,1768273838185,-500.0,0.00011632,2]
[401498864,1768273838195,-500.0,0.00011632,2]
[401498865,1768273838204,-500.0,0.00011632,2]
[401498866,1768273838214,-500.0,0.00011632,2]
[401498867,1768273838225,-500.0,0.00011632,2]
[401498868,1768273838234,-500.0,0.00011632,2]
[401498869,1768273838244,-500.0,0.00011632,2]
[401498870,1768273838253,-500.0,0.00011632,2]
[401498871,1768273838263,-500.0,0.00011632,2]
[401498872,1768273838272,-500.0,0.00011632,2]
[401498873,1768273838282,-500.0,0.00011632,2]
[401498874,1768273838291,-500.0,0.00011632,2]
[401498875,1768273838301,-500.0,0.00011632,2]
[401498876,1768273838312,-500.0,0.00011632,2]
[401498877,1768273838320,-500.0,0.00011632,2]
[401498878,1768273838330,-500.0,0.00011632,2]
[401498879,1768273838340,-500.0,0.00011632,2]
[401498880,1768273838349,-500.0,0.00011632,2]
[401498881,1768273838359,-500.0,0.00011632,2]
[401498882,1768273838369,-257.71844108,0.00011632,2]
[401498883,1768273838379,-500.0,0.00011632,2]